bitfinex/quotes_ETHUSD_20241203
["timestamp","ask_amount","ask_price","bid_price","bid_amount"]
[1733186211879,0.46007306,3637.9,3637.8,2.74891]
[1733186212085,0.1573597,3638.1,3637.6,3.1541642]
[1733186212256,0.1573597,3638.1,3638.0,2.74876]
[1733186212454,0.61708368,3638.1,3638.0,2.74876]
[1733186213196,0.36168147,3638.1,3638.0,2.74876]
[1733186214795,0.1573597,3638.1,3638.0,2.74876]
[1733186215148,0.1573597,3638.1,3638.0,6.5310242]
[1733186216061,0.1573597,3638.1,3638.0,7.2845242]
[1733186216876,0.1573597,3638.1,3638.0,4.13036]
[1733186217094,0.1573597,3638.1,3638.0,3.50226]
[1733186217297,0.1573597,3638.1,3638.0,2.74876]
[1733186218275,0.1573597,3638.1,3637.8,3.1541642]
[1733186218276,0.1573597,3638.1,3637.8,2.7489]
[1733186218499,0.1573597,3638.1,3637.6,0.55297688]
[1733186218500,0.1573597,3638.1,3637.6,3.30201688]
[1733186218869,0.1573597,3638.1,3637.6,0.55297688]
[1733186219070,0.1573597,3638.1,3637.7,2.74898]
[1733186219595,0.1573597,3638.1,3637.6,0.55297688]
[1733186219801,0.1573597,3638.1,3637.9,2.74877]
[1733186219985,0.1573597,3638.1,3637.6,0.55297688]
[1733186219986,0.1573597,3638.1,3637.8,2.74886]
[1733186220188,0.1573597,3638.1,3637.6,0.55297688]
[1733186221056,0.1573597,3638.1,3638.0,2.74876]
[1733186222461,0.1573597,3638.1,3637.8,5.9030642]
[1733186222684,0.1573597,3638.1,3637.8,2.7489]
[1733186223106,0.1573597,3638.1,3637.9,2.74882]
[1733186223817,0.1573597,3638.1,3638.0,2.74876]
[1733186223963,0.1573597,3638.1,3638.0,3.53206]
[1733186224165,0.1573597,3638.1,3638.0,2.74876]
[1733186224877,0.7611,3639.2,3639.0,2.74798]
[1733186225095,0.7611,3639.6,3638.6,3.1541642]
[1733186225414,0.7611,3639.6,3638.8,2.74808]
[1733186225565,0.7611,3639.6,3638.6,3.06369642]
[1733186225902,0.7611,3639.6,3638.2,5.9027642]
[1733186225903,0.7611,3639.4,3638.4,2.74843]
[1733186226262,0.7611,3639.4,3638.1,2.74862]
[1733186226263,2.95202526,3639.3,3638.1,2.74862]
[1733186226490,0.55,3639.1,3638.2,2.74859]
[1733186226692,0.55,3639.1,3638.0,0.7833]
[1733186226693,0.75418526,3639.1,3638.3,2.74853]
[1733186226860,0.75418526,3639.1,3638.4,2.74844]
[1733186227091,0.55,3639.1,3638.0,0.7833]
[1733186227430,0.55,3639.1,3638.2,2.7486]
[1733186227577,0.55,3639.1,3637.8,3.1541642]
[1733186227578,0.55,3638.7,3637.8,2.7489]
[1733186227778,0.55,3638.5,3637.8,2.7489]
[1733186228025,0.55,3638.5,3637.7,0.56221674]
[1733186228335,0.55,3638.5,3638.0,2.74869]
[1733186228481,0.25526079,3638.9,3638.1,1.09495374]
[1733186228482,0.55,3638.7,3638.1,1.09495374]
[1733186228683,0.20424956,3638.8,3638.6,2.7483]
[1733186228684,0.55,3638.8,3638.6,2.7483]
[1733186228883,0.55,3639.1,3638.7,2.74816]
[1733186229680,0.55,3639.2,3638.7,2.74816]
[1733186229988,0.55,3639.2,3638.3,2.74847]
[1733186229989,0.75429936,3639.2,3638.3,2.74847]
[1733186230195,0.20429936,3639.1,3638.3,3.4049399]
[1733186230414,0.55,3639.0,3638.4,2.74843]
[1733186230593,0.75434486,3639.0,3638.4,2.74843]
[1733186230799,0.75435696,3639.1,3638.5,2.74835]
[1733186231029,0.55,3639.2,3638.7,2.74823]
[1733186231248,0.55,3639.2,3638.7,3.023053]
[1733186231446,0.75435696,3639.2,3638.7,3.023053]
[1733186232156,0.75435696,3639.2,3638.9,2.74806]
[1733186232362,0.55,3639.2,3639.0,2.74794]
[1733186233051,0.55,3639.4,3639.0,2.74794]
[1733186233218,0.55,3639.5,3638.8,2.74815]
[1733186233422,0.75445785,3639.5,3638.9,0.3022973]
[1733186233624,0.55,3639.3,3638.9,0.3022973]
[1733186234225,0.55,3639.2,3638.9,0.3022973]
[1733186234632,0.55,3639.4,3638.8,2.74811]
[1733186234939,0.75444967,3639.4,3638.8,2.74811]
[1733186235261,0.55,3639.2,3638.8,2.74811]
[1733186235438,0.55,3639.2,3638.3,0.6564699]
[1733186235633,1.01013626,3639.4,3638.8,2.74815]
[1733186235875,0.55,3639.2,3638.8,3.022965]
[1733186236068,0.20455095,3639.3,3639.0,2.65172892]
[1733186236277,0.7777,3639.9,3639.5,2.74761]
[1733186236479,0.46013626,3639.8,3639.5,2.74761]
[1733186236656,0.20455095,3639.8,3639.6,2.74753]
[1733186236877,0.7777,3639.9,3639.7,2.74747]
[1733186237176,0.7777,3639.9,3639.5,2.74761]
[1733186237329,0.55,3639.8,3639.5,3.297152]
[1733186238256,1.01018947,3639.8,3639.5,3.297152]
[1733186238528,0.55,3640.1,3639.3,2.74777]
[1733186238837,0.55,3639.9,3639.6,2.74748]
[1733186238989,0.55,3640.1,3639.6,2.74748]
[1733186239194,0.55,3639.9,3639.6,2.74748]
[1733186239503,0.55,3639.7,3639.4,2.74768]
[1733186239908,0.55,3639.5,3639.2,2.74779]
[1733186240112,0.55,3639.5,3639.3,3.34368359]
[1733186240438,0.55,3639.5,3639.3,0.59592359]
[1733186240607,0.55,3639.7,3639.4,2.7477]
[1733186240811,0.80598439,3640.0,3639.3,0.59592359]
[1733186241136,0.55,3639.8,3639.3,0.59592359]
[1733186241306,0.55,3639.6,3639.3,3.34369359]
[1733186241514,0.55,3639.6,3639.3,0.59592359]
[1733186241836,0.55,3639.4,3638.8,0.55757289]
[1733186242034,0.55,3639.2,3639.0,2.748]
[1733186242252,0.55,3639.2,3638.6,2.65172892]
[1733186242461,0.55,3639.3,3638.6,2.65172892]
[1733186242626,0.4609208,3639.2,3638.9,2.74807]
[1733186242815,0.55,3639.1,3638.9,2.74807]
[1733186243254,0.7707,3639.2,3638.3,2.74852]
[1733186243491,0.55,3638.9,3638.5,2.74837]
[1733186243817,0.71698633,3639.1,3638.5,2.74837]
[1733186243818,0.55,3638.7,3638.5,2.74837]
[1733186244017,0.55,3638.7,3638.6,2.7483]
[1733186244253,0.55,3638.9,3638.5,0.3310341]
[1733186244460,0.55,3639.1,3638.6,2.7483]
[1733186244656,0.55,3639.1,3638.9,2.74805]
[1733186244828,0.66571679,3639.4,3639.2,2.74783]
[1733186245034,0.25601429,3639.5,3639.3,2.74778]
[1733186245230,0.46083852,3639.4,3639.3,2.74778]
[1733186245815,0.25602508,3639.4,3639.3,2.74778]
[1733186246263,0.55,3639.4,3639.3,2.74778]
[1733186246421,1.01086954,3639.4,3639.3,2.74778]
[1733186246616,0.55,3639.4,3639.3,3.022558]
[1733186247144,0.71694554,3639.8,3639.6,2.74754]
[1733186247472,0.55,3639.8,3639.6,2.74754]
[1733186247616,0.46085473,3639.7,3639.6,2.74754]
[1733186247816,1.01085473,3639.7,3639.3,0.274778]
[1733186248157,1.01085473,3639.7,3639.2,1.0344]
[1733186248158,1.0108668,3639.6,3639.4,2.74768]
[1733186248365,0.55,3639.6,3639.4,2.74768]
[1733186248671,0.55,3639.6,3639.5,2.74762]
[1733186248826,0.75484316,3639.6,3639.5,2.74762]
[1733186249158,1.01088986,3639.6,3639.3,2.74776]
[1733186249384,0.4609295,3639.5,3639.3,2.74776]
[1733186249676,0.55,3639.7,3639.3,0.84662558]
[1733186249962,0.55,3639.8,3639.6,2.74755]
[1733186250267,0.7549112,3639.7,3639.6,2.74755]
[1733186250417,1.01105272,3639.7,3639.6,2.74755]
[1733186250620,1.01105272,3639.7,3639.3,0.84662558]
[1733186250621,0.55,3639.6,3639.4,2.74768]
[1733186250862,0.55,3639.6,3639.3,0.84662558]
[1733186250863,0.55,3639.6,3639.5,2.74763]
[1733186251062,0.75491374,3639.6,3639.5,2.74763]
[1733186251360,1.0110559,3639.6,3639.3,0.84662558]
[1733186251573,0.55,3639.6,3639.3,0.302326]
[1733186251720,0.80619612,3639.9,3639.3,0.302326]
[1733186251922,0.55,3639.7,3639.6,2.74755]
[1733186252121,0.75495981,3639.7,3639.6,2.74755]
[1733186252366,0.55,3639.9,3639.6,2.74755]
[1733186252538,0.55,3639.7,3639.6,2.74755]
[1733186252743,1.01116217,3639.7,3639.6,2.74755]
[1733186253046,1.01116217,3639.7,3639.4,2.74769]
[1733186253246,0.46116217,3639.6,3639.4,2.74769]
[1733186253451,0.55,3639.9,3639.4,2.74769]
[1733186253674,0.55,3639.7,3639.4,2.74769]
[1733186253844,1.01091079,3639.6,3639.5,2.74763]
[1733186254784,0.20484683,3639.6,3639.5,2.74763]
[1733186254996,0.51210966,3639.9,3639.8,2.74736]
[1733186255286,0.46089897,3639.9,3639.8,2.74736]
[1733186255675,2.49122736,3640.6,3640.1,2.74717]
[1733186255676,0.71692284,3640.2,3640.1,2.74717]
[1733186255850,0.460878,3640.2,3640.1,3.296623]
[1733186256695,0.460878,3640.2,3640.1,2.74717]
[1733186257050,0.460878,3640.4,3640.3,2.74702]
[1733186257256,0.25604488,3640.4,3640.3,2.74702]
[1733186257461,1.39595921,3640.8,3640.5,2.74683]
[1733186257462,0.460878,3640.6,3640.5,2.74683]
[1733186258072,1.010878,3640.6,3640.2,0.02746628]
[1733186258272,0.7547566,3640.5,3640.3,2.74701]
[1733186258516,0.25594097,3640.8,3640.4,2.74695]
[1733186258517,0.55,3640.6,3640.4,2.74695]
[1733186258796,0.55,3640.6,3639.8,2.92722892]
[1733186258997,0.20474046,3640.5,3640.0,2.74719]
[1733186259202,0.80594586,3640.6,3639.9,0.37342289]
[1733186259203,0.55,3640.6,3639.9,0.37342289]
[1733186259413,0.20469826,3640.5,3639.9,0.37342289]
[1733186259558,0.55,3640.7,3640.3,2.74702]
[1733186259762,0.55,3640.5,3640.3,2.74702]
[1733186260065,0.55,3640.7,3640.5,2.74685]
[1733186260259,0.20466557,3640.6,3640.5,2.74685]
[1733186260507,0.80594586,3640.8,3640.5,2.74685]
[1733186260679,0.2046646,3640.7,3640.5,2.74685]
[1733186260882,0.2046646,3640.6,3640.5,2.74685]
[1733186261423,0.80594586,3640.8,3640.5,2.74685]
[1733186261718,0.75465569,3640.7,3640.6,2.74677]
[1733186261871,0.20465569,3640.8,3640.6,2.74677]
[1733186262070,0.20465569,3640.8,3640.6,3.1260372]
[1733186262287,0.55,3640.9,3640.7,2.74672]
[1733186262487,0.75465569,3640.9,3640.7,2.74672]
[1733186262783,0.55,3640.9,3640.7,2.74672]
[1733186262983,0.55,3641.0,3640.7,3.11510286]
[1733186263221,0.55,3640.9,3640.8,2.74662]
[1733186263375,0.55,3640.9,3640.7,0.36838286]
[1733186263573,0.55,3641.0,3640.6,0.3792672]
[1733186264016,0.55,3640.9,3640.6,0.3792672]
[1733186264315,0.55,3641.0,3640.6,0.3792672]
[1733186264514,0.75462428,3641.0,3640.7,2.74671]
[1733186264682,0.55,3641.0,3640.7,2.74671]
[1733186264896,0.70462428,3641.0,3640.7,2.74671]
[1733186265128,0.5,3641.0,3640.6,0.3792672]
[1733186265433,0.70462428,3641.0,3640.6,0.3792672]
[1733186265595,0.5,3641.0,3640.6,0.3792672]
[1733186265948,0.20462428,3641.0,3640.9,2.65172892]
[1733186266156,1.71002736,3641.6,3640.9,2.65172892]
[1733186266157,1.14001824,3641.9,3641.4,2.74619]
[1733186266447,3.05793648,3642.3,3641.7,2.74597]
[1733186266448,0.46021839,3642.0,3641.7,2.74597]
[1733186266660,0.20454347,3642.2,3641.7,2.74597]
[1733186266944,0.7779,3642.3,3641.7,2.74597]
[1733186267723,0.20454347,3642.5,3641.7,2.74597]
[1733186267724,0.20454347,3642.5,3641.7,2.77342462]
[1733186267904,0.7867,3642.7,3641.7,3.59055497]
[1733186268239,0.46004347,3643.0,3641.7,4.92914102]
[1733186268448,0.7914,3643.0,3641.7,4.92914102]
[1733186269003,0.7914,3643.0,3641.7,4.9016864]
[1733186269711,0.7914,3643.0,3641.7,4.92913847]
[1733186269913,0.7914,3643.0,3641.7,4.92913698]
[1733186270115,0.7914,3643.0,3641.7,4.9016864]
[1733186270314,0.7914,3643.0,3641.7,7.9016864]
[1733186271509,9.7e-06,3641.8,3641.7,7.9016864]
[1733186274451,9.7e-06,3641.8,3641.7,1.3669164]
[1733186274659,9.7e-06,3641.8,3641.7,0.54978605]
[1733186274942,9.7e-06,3641.8,3640.9,0.8196]
[1733186275102,9.7e-06,3641.8,3641.4,0.5521838]
[1733186276428,9.7e-06,3641.8,3640.7,3.02012078]
[1733186276429,0.55,3641.6,3640.7,0.36839186]
[1733186276631,0.55,3641.6,3640.3,0.5557417]
[1733186276632,0.55,3641.4,3640.3,0.5557417]
[1733186276848,3.29635,3641.2,3640.3,0.88603187]
[1733186277049,3.29635,3641.2,3640.3,0.5557417]
[1733186277919,0.55,3641.2,3640.3,0.5557417]
[1733186278114,1.3796,3641.0,3639.9,2.74727]
[1733186278849,0.55,3640.8,3639.9,0.55640087]
[1733186279207,0.55,3640.9,3639.9,3.30369087]
[1733186279512,0.55,3640.9,3639.7,2.74747]
[1733186279733,0.55,3641.0,3639.7,3.36372989]
[1733186279928,0.55,3640.8,3639.9,2.74732]
[1733186280208,0.55,3640.8,3639.7,3.36371989]
[1733186280430,0.55,3640.8,3639.7,0.61625989]
[1733186280639,0.55,3640.8,3640.1,2.7471]
[1733186280843,0.55,3640.8,3640.2,0.0274673]
[1733186281205,0.55,3640.8,3640.3,2.74701]
[1733186281407,0.55,3640.8,3640.1,2.74716]
[1733186281643,0.55,3640.8,3640.2,2.74708]
[1733186282018,0.55,3640.8,3640.3,2.74701]
[1733186282355,0.55,3640.8,3640.1,3.34224471]
[1733186282646,0.55,3640.8,3640.1,3.36971041]
[1733186283051,0.55,3640.8,3640.1,3.34224471]
[1733186283261,3.29665,3640.8,3639.7,2.74745]
[1733186283429,0.55,3640.6,3639.7,2.74745]
[1733186283668,0.7998,3640.5,3639.0,3.47792892]
[1733186284005,0.55,3640.4,3639.2,2.74785]
[1733186284161,0.55,3640.4,3640.0,2.74725]
[1733186284354,0.55,3640.4,3639.8,2.74735]
[1733186284599,0.55,3640.4,3639.9,2.74731]
[1733186287056,0.55,3640.4,3639.5,0.55343767]
[1733186287393,0.7925,3640.0,3639.0,2.74799]
[1733186287575,0.55,3639.9,3638.6,0.7781]
[1733186288083,0.7925,3639.8,3638.8,2.74808]
[1733186288292,0.55,3639.7,3638.9,2.74807]
[1733186288672,0.55,3639.7,3638.7,0.5757499]
[1733186288871,0.55,3639.7,3639.2,2.7478]
[1733186289201,0.55,3639.7,3639.3,0.02747475]
[1733186289367,0.55,3639.7,3639.6,2.74755]
[1733186290066,0.7574,3640.2,3639.8,2.74738]
[1733186290276,0.7574,3640.2,3639.9,2.74731]
[1733186290662,0.7574,3640.2,3639.6,2.74749]
[1733186290864,0.7574,3640.2,3639.6,3.022239]
[1733186291281,0.55,3640.1,3639.6,0.274749]
[1733186291482,0.55,3640.1,3639.8,2.7474]
[1733186291795,0.55,3640.1,3639.7,0.2755]
[1733186291998,0.55,3640.1,3639.4,2.74767]
[1733186292501,0.55,3640.1,3639.5,0.02747163]
[1733186292811,0.55,3640.1,3639.8,2.74733]
[1733186292970,0.55,3640.1,3639.6,2.74753]
[1733186293512,0.55,3640.1,3639.7,2.7474]
[1733186294308,0.55,3640.1,3639.6,0.302303]
[1733186294507,0.55,3640.1,3639.5,2.7476]
[1733186295022,0.55,3640.1,3639.4,3.02317]
[1733186295707,0.55,3640.1,3639.4,0.2755]
[1733186296082,0.7678,3640.0,3639.4,0.2755]
[1733186296278,0.55,3639.9,3639.1,2.74791]
[1733186296479,0.55,3639.9,3638.9,3.02356]
[1733186296679,0.55,3639.9,3639.0,3.405366]
[1733186297284,0.55,3639.9,3639.0,0.657406]
[1733186297491,0.55,3639.9,3639.2,2.74779]
[1733186297693,0.7678,3640.0,3639.0,0.30297546]
[1733186298021,0.7678,3640.0,3639.5,2.74762]
[1733186298365,0.7678,3640.0,3639.2,2.74781]
[1733186298570,0.7678,3640.0,3639.7,2.74746]
[1733186298817,0.7678,3640.0,3639.8,2.74736]
[1733186299323,0.7678,3640.0,3639.3,0.2755]
[1733186299632,0.7678,3640.0,3639.5,2.7476]
[1733186300037,0.7678,3640.0,3639.6,2.74755]
[1733186300246,0.55,3639.9,3639.6,2.74755]
[1733186301052,0.55,3639.9,3639.4,0.382481]
[1733186301358,0.55,3639.9,3639.2,2.74778]
[1733186301563,0.55,3639.9,3639.3,2.74777]
[1733186301860,0.55,3639.9,3639.2,2.74784]
[1733186302069,0.55,3639.9,3639.0,0.2755]
[1733186302421,0.55,3639.9,3639.5,2.74762]
[1733186302958,0.55,3639.9,3639.4,2.74763]
[1733186303160,0.55,3639.9,3639.4,3.297186]
[1733186303829,0.55,3639.9,3639.1,3.02336]
[1733186304025,0.55,3639.9,3638.9,0.2755]
[1733186304230,0.55,3639.7,3639.1,2.7479]
[1733186304635,0.80539513,3639.9,3639.1,2.7479]
[1733186304970,0.80539979,3639.9,3639.0,0.2755]
[1733186305169,0.55,3639.7,3639.0,0.2755]
[1733186305332,0.55,3639.7,3639.6,2.74755]
[1733186305538,0.80560494,3639.9,3639.7,2.74746]
[1733186305875,0.55,3639.9,3639.7,2.74741]
[1733186307276,0.55,3639.9,3639.4,2.74763]
[1733186307491,0.55,3639.9,3639.2,0.56027645]
[1733186307772,0.55,3639.7,3639.0,0.2755]
[1733186307981,0.55,3639.5,3638.9,2.748]
[1733186308734,0.7653,3639.7,3638.7,2.74816]
[1733186308937,0.55,3639.4,3638.6,0.2755]
[1733186309181,0.55,3639.2,3638.6,0.2755]
[1733186309782,0.55,3639.2,3638.5,3.02385]
[1733186309988,0.55,3639.2,3638.6,2.74828]
[1733186311473,0.55,3639.2,3638.4,3.57816832]
[1733186311686,0.55,3639.0,3638.4,0.82972832]
[1733186311853,0.55,3639.0,3638.4,0.55422832]
[1733186312199,0.55,3639.0,3637.7,0.7773]
[1733186312200,0.7982,3638.7,3638.1,2.74865]
[1733186312353,0.7982,3638.7,3637.4,0.7773]
[1733186312354,0.55,3638.6,3638.0,0.54637836]
[1733186312850,0.55,3638.6,3638.0,3.29511836]
[1733186313051,0.55,3638.6,3638.1,2.7761442]
[1733186313249,0.55,3638.6,3638.2,2.7486]
[1733186313492,0.55,3638.6,3638.3,2.74852]
[1733186314596,0.55,3638.6,3638.0,0.8758902]
[1733186314597,0.55,3638.6,3638.4,2.74844]
[1733186314947,0.55,3638.6,3638.2,2.74859]
[1733186315153,0.55,3638.6,3638.2,3.38587402]
[1733186315393,0.55,3638.6,3638.0,0.8758902]
[1733186315565,0.55,3638.6,3638.0,3.29511836]
[1733186316091,0.55,3638.4,3638.1,2.74868]
[1733186316296,0.55,3638.6,3638.2,2.74856]
[1733186316681,0.55,3638.6,3638.0,0.54637836]
[1733186316853,0.55,3638.6,3638.2,2.74853]
[1733186318218,0.55,3638.6,3638.3,2.7485]
[1733186318582,0.20441764,3638.9,3638.4,0.02748239]
[1733186318780,0.80553241,3638.8,3638.2,2.74861]
[1733186318987,0.55,3638.9,3638.5,2.74832]
[1733186319188,0.55,3638.9,3638.3,0.44025604]
[1733186319412,0.55,3638.9,3638.6,2.74825]
[1733186319938,0.55,3638.9,3638.7,2.74819]
[1733186320222,0.75441525,3639.3,3638.8,2.74811]
[1733186320381,0.25553809,3639.2,3638.7,2.74821]
[1733186320581,0.25553809,3639.1,3638.7,2.74821]
[1733186320823,0.55,3639.3,3638.7,2.74821]
[1733186321023,0.2555467,3639.2,3638.7,2.74821]
[1733186321221,0.55,3639.3,3638.7,2.74821]
[1733186321400,0.55,3639.1,3638.7,2.74819]
[1733186321578,0.55,3639.1,3638.7,3.297852]
[1733186321782,0.55,3639.2,3638.7,3.297852]
[1733186322029,0.75444071,3639.2,3638.7,3.297852]
[1733186322332,0.55,3639.2,3638.7,3.297852]
[1733186322527,0.80555425,3639.2,3638.7,3.297852]
[1733186322823,1.00999741,3639.3,3638.9,2.74803]
[1733186323039,0.55,3639.3,3638.7,0.549662]
[1733186323201,0.55,3639.3,3638.7,2.7482]
[1733186323389,0.55,3639.1,3638.7,2.7482]
[1733186324035,0.55,3639.2,3638.7,2.7482]
[1733186324333,0.55,3639.1,3638.6,0.55582596]
[1733186324481,0.7906,3639.4,3639.0,2.74794]
[1733186324683,0.7906,3639.4,3639.2,2.74785]
[1733186324893,0.7906,3639.4,3639.1,0.30501819]
[1733186325111,1.54453837,3639.8,3638.9,3.52413]
[1733186325296,1.54453837,3639.8,3638.6,1.35852596]
[1733186325297,0.4600564,3639.7,3638.6,1.35852596]
[1733186325525,0.8289,3639.8,3639.3,2.74775]
[1733186325739,0.46009972,3639.7,3639.3,2.74775]
[1733186326043,0.46009972,3639.6,3639.3,2.74772]
[1733186326229,0.55,3639.6,3639.4,2.74769]
[1733186326426,0.55,3639.7,3639.4,2.74769]
[1733186327006,0.55,3639.5,3639.4,2.74769]
[1733186327402,1.01011426,3639.7,3639.4,2.74769]
[1733186327600,0.55,3639.5,3639.4,2.74769]
[1733186328000,0.55,3639.5,3639.3,0.274772]
[1733186328231,0.55,3639.5,3639.3,3.022502]
[1733186328415,0.55,3639.6,3639.3,3.022502]
[1733186328621,0.55,3639.7,3639.3,3.022502]
[1733186328820,0.4601334,3639.6,3639.5,2.74763]
[1733186329033,0.25562932,3639.6,3639.5,2.74763]
[1733186329229,0.46016742,3639.7,3639.3,0.274772]
[1733186329507,0.8289,3639.8,3639.4,0.02747451]
[1733186329740,0.8289,3639.8,3639.7,2.74747]
[1733186330056,1.28912673,3639.8,3639.7,2.74747]
[1733186330227,1.08458152,3639.8,3639.7,2.74747]
[1733186330423,1.28912673,3639.8,3639.7,2.74747]
[1733186331548,1.28912673,3639.8,3639.4,0.56344842]
[1733186331747,0.8289,3639.8,3639.6,2.74754]
[1733186332341,0.25582767,3639.7,3639.6,0.33109884]
[1733186332640,0.46059858,3640.0,3639.9,2.74732]
[1733186332821,3.02668021,3640.4,3640.3,2.74702]
[1733186333022,1.20377619,3640.4,3640.3,2.74702]
[1733186333347,0.94786495,3640.4,3640.3,2.74702]
[1733186333555,0.8065,3640.5,3640.3,2.74702]
[1733186334042,0.7782,3640.3,3639.4,3.31114842]
[1733186334246,0.7782,3639.7,3638.5,2.74831]
[1733186334415,0.55,3639.3,3638.1,0.33227208]
[1733186334754,0.8058179,3639.3,3638.6,2.74828]
[1733186334910,1.01050503,3639.3,3638.6,2.74828]
[1733186335107,1.01050503,3639.3,3638.1,0.33227208]
[1733186335108,0.75468713,3639.3,3638.1,0.33227208]
[1733186335359,0.75468713,3639.3,3638.2,0.3755601]
[1733186335653,0.75468713,3639.3,3638.4,3.29370961]
[1733186335852,0.55,3639.1,3638.4,3.29370961]
[1733186336011,0.55,3639.1,3638.4,2.74846]
[1733186336653,0.75470146,3639.1,3638.4,2.74846]
[1733186336858,0.75470146,3639.1,3638.2,0.3755601]
[1733186337149,0.75470146,3639.1,3638.3,2.74852]
[1733186337354,0.75470146,3639.1,3638.3,0.7469271]
[1733186337541,0.75470146,3639.1,3638.4,2.74845]
[1733186338540,0.55,3639.1,3638.4,2.74845]
[1733186338752,0.75475859,3639.1,3638.4,2.74845]
[1733186339252,0.55,3639.1,3638.7,2.74822]
[1733186339455,0.96298456,3639.2,3638.8,0.02748151]
[1733186339625,0.7582,3639.2,3638.4,0.02748151]
[1733186339947,0.7582,3639.2,3638.8,2.74813]
[1733186340153,0.7582,3639.2,3638.8,3.022943]
[1733186340352,0.55,3639.1,3638.3,0.7469271]
[1733186340559,0.55,3639.1,3638.3,3.4954071]
[1733186340759,0.75479577,3639.1,3638.3,3.4954071]
[1733186341066,0.46070822,3639.0,3638.3,3.4954071]
[1733186341218,0.55,3639.1,3638.3,3.4954071]
[1733186341419,0.46084357,3639.0,3638.3,2.74848]
[1733186341663,0.2048158,3638.9,3638.3,2.74848]
[1733186341817,0.25602777,3639.0,3638.3,2.74848]
[1733186342020,0.20481225,3638.9,3638.3,2.74848]
[1733186342250,0.25602777,3639.0,3638.2,0.54610942]
[1733186342251,0.55,3638.8,3638.4,2.74844]
[1733186342748,0.25602777,3639.0,3638.4,0.35693684]
[1733186342919,0.55,3639.0,3638.6,2.74828]
[1733186343119,0.25602777,3639.1,3638.4,0.35693684]
[1733186343120,0.55,3639.1,3638.4,0.35693684]
[1733186343362,0.55,3639.1,3638.6,2.74829]
[1733186343737,0.55,3639.1,3638.4,0.32945494]
[1733186343738,0.55,3639.1,3638.4,3.07790494]
[1733186343940,0.7548361,3639.1,3638.5,2.74835]
[1733186344131,0.55,3639.1,3638.5,2.74835]
[1733186344457,0.80604021,3639.1,3638.5,2.74835]
[1733186344663,0.55,3639.1,3638.6,2.74829]
[1733186345264,0.25604021,3639.0,3638.6,2.74829]
[1733186345467,0.55,3638.9,3638.4,0.32945494]
[1733186345624,0.55,3638.9,3637.0,2.74948]
[1733186345625,0.7943,3638.6,3637.6,3.0]
[1733186345828,0.55,3638.5,3637.6,2.74906]
[1733186346069,0.55,3638.3,3637.4,3.0247]
[1733186346270,0.55,3638.1,3637.3,0.54193328]
[1733186346563,0.55,3638.1,3637.4,0.02749008]
[1733186346868,0.8003,3638.2,3637.9,0.2755]
[1733186347853,0.55,3638.1,3637.5,0.2755]
[1733186348654,0.55,3638.1,3637.5,3.0246]
[1733186348984,0.55,3638.1,3637.5,0.63215333]
[1733186349157,0.55,3638.1,3637.6,3.02455]
[1733186349364,0.55,3638.1,3637.6,0.2755]
[1733186349568,0.55,3638.1,3637.6,3.02453]
[1733186350098,0.55,3638.1,3637.4,2.74919]
[1733186350588,0.55,3638.1,3637.3,0.54193328]
[1733186350589,0.55,3638.1,3637.5,2.74913]
[1733186350790,0.55,3638.1,3637.7,2.74896]
[1733186351089,0.8003,3638.2,3638.0,2.74875]
[1733186351340,0.8003,3638.2,3637.6,3.10558406]
[1733186351452,0.8003,3638.2,3637.6,0.32910633]
[1733186352091,0.8003,3638.2,3637.5,2.74907]
[1733186352261,0.55,3638.1,3637.3,0.54193328]
[1733186352459,0.55,3638.1,3637.3,2.74928]
[1733186352664,0.55,3638.1,3637.4,2.74917]
[1733186353889,0.55,3638.1,3637.2,3.02484]
[1733186354061,0.25528454,3638.3,3637.7,2.65172892]
[1733186354262,0.25528454,3638.3,3637.4,4.0552]
[1733186354263,0.7828,3638.7,3638.2,2.74854]
[1733186354475,0.7828,3638.7,3638.1,2.65172892]
[1733186354688,0.7828,3638.7,3638.3,2.74846]
[1733186354894,0.7828,3638.7,3638.1,2.74866]
[1733186355195,0.7828,3638.7,3638.3,2.74852]
[1733186355363,0.7828,3638.7,3638.1,0.549757]
[1733186355558,0.7828,3638.7,3638.0,2.74872]
[1733186355754,0.7828,3638.7,3638.1,5.4278821]
[1733186355979,0.7828,3638.7,3638.5,2.74835]
[1733186356900,0.7828,3638.7,3638.6,2.7483]
[1733186357070,1.71644939,3639.6,3638.2,2.74861]
[1733186357071,1.3718,3639.2,3638.2,2.74861]
[1733186357267,1.3718,3639.2,3638.1,3.44342892]
[1733186357268,1.3718,3639.2,3638.3,0.6747431]
[1733186357459,1.3718,3639.2,3638.7,2.74821]
[1733186357788,1.3718,3639.2,3638.9,2.74807]
[1733186357975,1.3718,3639.2,3638.7,2.74816]
[1733186358175,1.3718,3639.2,3638.7,2.7482]
[1733186358377,1.3718,3639.2,3638.8,2.74814]
[1733186360229,0.8218,3639.2,3639.1,2.74793]
[1733186360427,1.07728303,3639.6,3639.0,2.748]
[1733186360730,0.8218,3639.6,3639.5,2.74763]
[1733186361050,0.20438658,3639.8,3639.7,2.74747]
[1733186361336,0.8218,3639.9,3639.8,2.7474]
[1733186361505,0.46000346,3640.1,3640.0,2.74725]
[1733186361714,0.8218,3640.3,3640.1,2.74717]
[1733186362211,0.8218,3640.3,3639.8,2.65172892]
[1733186362528,1.14429959,3640.6,3640.2,2.7471]
[1733186362697,0.25551044,3640.6,3640.2,2.7471]
[1733186362899,1.28171882,3640.7,3640.2,2.7471]